Cogmind - Beta 14 --- EXPLORER MODE // 2024.11.15 @ 13:17:02 Player: piracy master Result: Destroyed by G-34 Mercenary with Small Laser Performance ------------- Evolutions (0) 0 Regions Visited (4) 800 Robots Destroyed (21) 105 Value Destroyed (346) 346 Prototype IDs (27) 540 Alien Tech Used (0) 0 Bonus (300) 300 TOTAL SCORE: 2091 Bonus ------- Aligned with FarCom 300 Cogmind --------- Core Integrity 0/250 Matter 279/300 Energy 250/250 System Corruption 0% Temperature Cool (6) Movement Treading (160) Location -9/Mines Parts ------- > --- POWER (1) -------- Ion Engine > --- PROPULSION (3) --- Light Treads Light Treads Aluminum Leg > --- UTILITY (2) ------ Medium Storage Unit Core Shielding > --- WEAPON (2) ------- Assault Rifle > --- INVENTORY (10) --- Humpback Large Battery (200) Structural Scanner Targeting Computer Utility Shielding Weapon Shielding Tractor Beam AWS/Gauss Peak State ------------ > --- POWER ------------ Light Ion Engine > --- PROPULSION ------- Aluminum Leg Aluminum Leg Aluminum Leg > --- UTILITY ---------- Medium Storage Unit Core Shielding > --- WEAPON ----------- Assault Rifle Light Assault Rifle > --- INVENTORY -------- Ion Engine Light Treads Light Treads Structural Scanner Improved Terrain Scanner Targeting Computer Weapon Shielding Tractor Beam Assault Rifle [Rating: 9] Favorites ----------- Power Light Ion Engine Engine Light Ion Engine Propulsion Aluminum Leg Treads Light Treads Leg Aluminum Leg Utility Medium Storage Unit Device Tractor Beam Storage Medium Storage Unit Protection Core Shielding Weapon Light Assault Rifle Ballistic Gun Light Assault Rifle Build | -11 -10 -10 -10 -9 ------- Run | Yrd Mat Min Exi Min Slots Evolved 1 | . 1 . . . Power . | . . . . . Propulsion 1 | . 1 . . . Utility . | . . . . . Weapon . | . . . . . Parts Attached 18 | 10 3 5 . . Power 2 | 1 . 1 . . Engine 2 | 1 . 1 . . Core . | . . . . . Reactor . | . . . . . Propulsion 7 | 2 2 3 . . Treads 2 | . . 2 . . Leg 5 | 2 2 1 . . Wheel . | . . . . . Hover . | . . . . . Flight . | . . . . . Utility 5 | 5 . . . . Device 1 | 1 . . . . Storage 1 | 1 . . . . Processor . | . . . . . Hackware . | . . . . . Protection 3 | 3 . . . . Artifact . | . . . . . Weapon 4 | 2 1 1 . . Energy Gun . | . . . . . Energy Cannon . | . . . . . Ballistic Gun 4 | 2 1 1 . . Ballistic Cannon . | . . . . . Launcher . | . . . . . Special Weapon . | . . . . . Impact Weapon . | . . . . . Slashing Weapon . | . . . . . Piercing Weapon . | . . . . . Special Melee Weapon . | . . . . . Unidentified Prototypes . | . . . . . Parts Lost 6 | . . 6 . . Power 1 | . . 1 . . Propulsion 3 | . . 3 . . Utility . | . . . . . Weapon 2 | . . 2 . . Highest Loss Streak 6 | . . 6 . . To Critical Strikes . | . . . . . Average Slot Usage (%) 95 | . 99 84 87 87 Engine 11 | . 12 7 12 12 Treads 8 | . . 17 25 25 Leg 28 | . 36 15 12 12 Storage 12 | . 12 12 12 12 Protection 12 | . 12 12 12 12 Ballistic Gun 20 | . 25 17 12 12 Peak Build Rating 9 | 8 9 9 9 9 Average Rating 8 | 5 8 7 8 9 On Entrance 6 | . 8 9 7 9 Naked Turns . | . . . . . Heaviest Build 18 | 17 17 18 18 18 Greatest Support 40 | 20 30 40 40 40 Greatest Overweight (x) 3 | 3 . 1 . . Average Overweight (x) . | . . . . . Largest Inventory Capacity 10 | 10 10 10 10 10 Average Capacity 9 | 9 10 10 10 10 Most Carried 10 | 10 10 10 10 10 Average Carried 8 | 6 9 6 6 10 Final Capacity 10 | 10 10 10 10 10 Final Carried 10 | 9 10 5 10 10 Class Distribution -------------------- 100% | Hacker-Mutant Dominant Class ---------------- Hacker-Mutant | -10/Materials Hacker-Mutant | -10/Mines Hacker-Mutant | -10/Exiles Hacker-Mutant | -9/Mines Resources | -11 -10 -10 -10 -9 ----------- Run | Yrd Mat Min Exi Min Matter Collected 621 | 315 171 135 . . Remotely 118 | 118 . . . . Salvage Created 739 | 137 415 130 . 57 Parts 53 | 13 38 . . 2 Haulers Intercepted . | . . . . . Recyclers Shooed 1 | 1 . . . . Parts Field Recycled . | . . . . . Retrieved Matter . | . . . . . Parts Self-Destructed . | . . . . . Prevented . | . . . . . Kills | -11 -10 -10 -10 -9 ------- Run | Yrd Mat Min Exi Min Combat Hostiles Destroyed 20 | . 10 9 . 1 Guns 20 | . 10 9 . 1 Classes Destroyed 8 | 3 4 1 . . Worker 1 | 1 . . . . Builder 1 | . 1 . . . Tunneler 3 | 3 . . . . Recycler 3 | 1 2 . . . Watcher 2 | . 2 . . . Swarmer 6 | . 6 . . . Grunt 5 | . 4 . . 1 Assembled 9 | . . 9 . . Best Kill Streak 6 | 5 2 6 . 1 Combat Bots Only 6 | . 2 6 . 1 Max Kills in Single Turn 1 | 1 1 1 . 1 Gunslinging . | . . . . . Exploded . | . . . . . Melee . | . . . . . Uniques/NPCs Destroyed . | . . . . . Combat | -11 -10 -10 -10 -9 -------- Run | Yrd Mat Min Exi Min Hostile Shots Fired 196 | . 39 150 . 7 Missed 42 | . 7 32 . 3 Damage Taken 1234 | . 206 997 . 31 Core 251 | . 46 199 . 6 Absorbed by Shields . | . . . . . Redirected to Shielding 36 | . 6 29 . 1 Ignored by Resistances 776 | . 136 621 . 19 Core Remaining (%) 100 | 100 . . . . Volleys Fired 99 | 8 47 37 . 7 Largest 2 | 2 2 2 . 1 Hottest 40 | 40 40 40 . 20 Shots Fired 174 | 16 94 57 . 7 Gun 174 | 16 94 57 . 7 Cannon . | . . . . . Launcher . | . . . . . Special . | . . . . . Kinetic 174 | 16 94 57 . 7 Thermal . | . . . . . Explosive . | . . . . . Electromagnetic . | . . . . . Robot Hit Streak 57 | 6 16 57 . 6 Robot Miss Streak 3 | 1 3 . . 1 Penetration Max . | . . . . . Secondary Targets 3 | . . 3 . . Max Gunslinging Chain 1 | . . 1 . . Shots Hit Robots 140 | 11 66 57 . 6 Core Hits 65 | 7 28 26 . 4 Critical Kills . | . . . . . Critical Parts Destroyed . | . . . . . Critical Strikes . | . . . . . Melee Attacks . | . . . . . Impact . | . . . . . Slashing . | . . . . . Piercing . | . . . . . Sneak Attacks . | . . . . . Combat Hostiles . | . . . . . Follow-up Attacks . | . . . . . Damage Inflicted 1400 | 118 649 555 . 78 Guns 1381 | 118 630 555 . 78 Cannons . | . . . . . Explosions . | . . . . . Melee . | . . . . . Ramming 19 | . 19 . . . Kinetic 1381 | 118 630 555 . 78 Thermal . | . . . . . Explosive . | . . . . . Electromagnetic . | . . . . . Impact . | . . . . . Slashing . | . . . . . Piercing . | . . . . . Highest Corruption . | . . . . . Average Corruption . | . . . . . Corruption Purged . | . . . . . Corruption Blocked . | . . . . . Overload Shots . | . . . . . Overflow Damage . | . . . . . Projectiles . | . . . . . Explosions . | . . . . . Melee . | . . . . . Knockbacks . | . . . . . Impact . | . . . . . Kinetic . | . . . . . Secondary . | . . . . . Self-Inflicted Damage . | . . . . . Shots . | . . . . . Rammed . | . . . . . Targets Rammed 6 | . 6 . . . Kicked 6 | . 6 . . . Crushed . | . . . . . Highest Temperature 15 | . 9 15 . . Average Temperature 8 | . 7 12 . . Received Heat Transfer 266 | . 156 80 . 30 Siege Activations . | . . . . . Robots Corrupted . | . . . . . Combat Hostiles . | . . . . . Parts Fried . | . . . . . Impact Corruptions . | . . . . . Robots Melted . | . . . . . Combat Hostiles . | . . . . . Parts Melted . | . . . . . Heat Transferred . | . . . . . Parts Sabotaged . | . . . . . Parts Stolen . | . . . . . Parts Stripped . | . . . . . Power Chain Reactions . | . . . . . Alert | -11 -10 -10 -10 -9 ------- Run | Yrd Mat Min Exi Min Peak Influence 142 | 25 142 17 . 30 Initial 12 | . 12 2 . . Average 49 | 5 66 2 . . Maximum Alert Level . | . . . . . Low Security (%) 100 | 100 100 100 . 100 Level 1 . | . . . . . Level 2 . | . . . . . Level 3 . | . . . . . Level 4 . | . . . . . Level 5 . | . . . . . High Security . | . . . . . Max Security . | . . . . . Squads Dispatched . | . . . . . Investigation . | . . . . . Extermination . | . . . . . Reinforcement . | . . . . . Assault . | . . . . . Garrison . | . . . . . Intercept . | . . . . . Searches Triggered . | . . . . . Construction Impeded . | . . . . . Haulers Reinforced . | . . . . . Active Scanning Responses . | . . . . . Cargo Convoy Interrupts . | . . . . . Stealth | -11 -10 -10 -10 -9 --------- Run | Yrd Mat Min Exi Min Distress Signals 1 | . 1 . . . Communications Jammed . | . . . . . Distress Signals . | . . . . . Times Spotted 44 | . 26 16 . 2 Peak Tracking Total 16 | . 4 16 . 2 Tactical Retreats 4 | . 2 2 . . Traps | -11 -10 -10 -10 -9 ------- Run | Yrd Mat Min Exi Min Traps Triggered 2 | . 2 . . . Indirectly . | . . . . . Trap Hack Attempts . | . . . . . Triggered . | . . . . . Disarmed . | . . . . . Reprogrammed . | . . . . . Reused . | . . . . . Traps Extracted . | . . . . . Installed . | . . . . . Triggered . | . . . . . Machines | -11 -10 -10 -10 -9 ---------- Run | Yrd Mat Min Exi Min Machines Disabled . | . . . . . Max in Single Turn . | . . . . . Machines Repaired . | . . . . . Machines Dismantled . | . . . . . Machines Sabotaged . | . . . . . Overloaded Fab Kills . | . . . . . Hacking | -11 -10 -10 -10 -9 --------- Run | Yrd Mat Min Exi Min Machines Accessed 11 | . 9 . 2 . Terminals 8 | . 8 . . . Fabricators . | . . . . . Repair Stations 1 | . 1 . . . Recycling Units . | . . . . . Scanalyzers . | . . . . . Garrison Access . | . . . . . Total Hacks 40 | . 30 . 10 . Successful 36 | . 26 . 10 . Failed 4 | . 4 . . . Catastrophic . | . . . . . Database Lockouts . | . . . . . Manual 24 | . 22 . 2 . Terminals 29 | . 29 . . . Fabricators . | . . . . . Repair Stations 1 | . 1 . . . Recycling Units . | . . . . . Scanalyzers . | . . . . . Garrison Access . | . . . . . Terminal Hacks 19 | . 9 . 10 . Record 12 | . 3 . 9 . Prototype ID Bank 2 | . 2 . . . Alert Level 1 | . 1 . . . Locate Traps 1 | . 1 . . . Zone Layout 2 | . 2 . . . Derelict Proto ID Bank 1 | . . . 1 . Fabricator Hacks . | . . . . . Repair Station Hacks 1 | . 1 . . . Scan Component 1 | . 1 . . . Recycling Unit Hacks . | . . . . . Scanalyzer . | . . . . . Garrison Access Hacks . | . . . . . Unauthorized Hacks 16 | . 16 . . . Terminals 16 | . 16 . . . Track 8 | . 8 . . . Skim 8 | . 8 . . . Fabricators . | . . . . . Repair Stations . | . . . . . Recycling Units . | . . . . . Scanalyzers . | . . . . . Garrison Access . | . . . . . Data Cores Recovered . | . . . . . Used . | . . . . . Hacking Detections 5 | . 5 . . . Full Trace Events 1 | . 1 . . . Feedback Events . | . . . . . Feedback Blocked . | . . . . . Robot Schematics Acquired . | . . . . . Robots Built . | . . . . . Authchips . | . . . . . Time . | . . . . . Total Robot Build Rating . | . . . . . Part Schematics Acquired . | . . . . . Parts Built . | . . . . . Authchips . | . . . . . Time . | . . . . . Total Part Build Rating . | . . . . . Parts Repaired . | . . . . . Time . | . . . . . Parts Recycled . | . . . . . Recycled Matter . | . . . . . Retrieved Matter . | . . . . . Retrieved Components . | . . . . . Parts Scanalyzed . | . . . . . Part Schematics Acquired . | . . . . . Parts Damaged . | . . . . . Bothacking | -11 -10 -10 -10 -9 ------------ Run | Yrd Mat Min Exi Min Used RIF Installer . | . . . . . Robots Hacked . | . . . . . Non-combat . | . . . . . Combat . | . . . . . Robot Hacks Applied . | . . . . . Relay Couplers Released . | . . . . . Fabnet Peak Effective % . | . . . . . Robots Rewired . | . . . . . Allies Hacked . | . . . . . Hacks Repelled . | . . . . . Allies | -11 -10 -10 -10 -9 -------- Run | Yrd Mat Min Exi Min Total Allies . | . . . . . Largest Group . | . . . . . Highest-Rated Group . | . . . . . Highest-Rated Ally . | . . . . . Total Orders . | . . . . . Ally Attacks . | . . . . . Total Damage . | . . . . . Kills . | . . . . . Allies Corrupted . | . . . . . Allies Melted . | . . . . . Intel | -11 -10 -10 -10 -9 ------- Run | Yrd Mat Min Exi Min Robot Analysis Total . | . . . . . Derelict Logs Recovered 1 | . . 1 . . Drone Launches . | . . . . . Drone Recoveries . | . . . . . Exploration | -11 -10 -10 -10 -9 ------------- Run | Yrd Mat Min Exi Min Turns Passed 3065 | 269 1802 177 639 178 Spaces Moved 1828 | 171 1104 55 397 101 Core 28 | 28 . . . . Treads 542 | . . 44 397 101 Legs 1258 | 143 1104 11 . . Wheels . | . . . . . Hover . | . . . . . Flight . | . . . . . Fastest Speed 50 | 50 120 120 160 160 Average Speed 132 | 128 120 153 160 160 Slowest Speed 200 | 200 120 190 160 160 Overloaded Moves . | . . . . . Propulsion Burnouts . | . . . . . Robots Hopped . | . . . . . Cave-ins Triggered . | . . . . . Exploration Rate (%) 46 | 6 98 12 77 38 Regions Visited 4 Branch Regions 3 Pre-discovered Areas 2 | . 1 1 . . Known Exits Taken 4 | 1 1 1 1 . Unknown Exits Taken . | . . . . . Scrap Searched . | . . . . . Spaces Dug . | . . . . . Terrain Destroyed . | . . . . . Melee . | . . . . . Projectile . | . . . . . AOE . | . . . . . Terrain Rammed . | . . . . . Walls Destroyed . | . . . . . Machines Disabled . | . . . . . Actions | -11 -10 -10 -10 -9 --------- Run | Yrd Mat Min Exi Min Total 2311 | 204 1498 98 401 110 Wait 338 | . 334 2 . 2 Move 1824 | 170 1103 54 396 101 Hop . | . . . . . Pick Up 22 | 16 3 . 3 . Fast Attach 2 | . 2 . . . Attach 13 | 7 1 5 . . Detach . | . . . . . Swap 3 | 3 . . . . Drop 2 | . 2 . . . Fire 99 | 8 47 37 . 7 Melee . | . . . . . Ram . | . . . . . Kick 6 | . 6 . . . Crush . | . . . . . Escape Stasis . | . . . . . Rewire 2 | . . . 2 . Trap . | . . . . . Miscellaneous . | . . . . . Route ------- -11/Scrapyard -10/Materials (discovered 6 exits: *Mat x3 / *Min x2 / Sub) -10/Mines (discovered 4 exits: Mat x2 / *Exi / Sub) -10/Exiles -9/Mines History --------- Turn | Location | Event 7 | -11/Scrapyard | Identified exit to Materials 7 | -11/Scrapyard | Discovered exit to Materials (range 16) 270 | -11/Scrapyard | Entered Materials 270 | -10/Materials | Evolved 1 slot: Propulsion x1 314 | -10/Materials | Build established: Hacker-Mutant 496 | -10/Materials | Identified exit to Mines 496 | -10/Materials | Discovered exit to Mines (range 15) 761 | -10/Materials | Identified exit to Materials 761 | -10/Materials | Discovered exit to Materials (range 13) 1062 | -10/Materials | Discovered exit to Materials (range 15) 1566 | -10/Materials | Discovered exit to Materials (range 4) 1583 | -10/Materials | Discovered exit to Mines (range 16) 1879 | -10/Materials | Identified exit to Subcaves 1928 | -10/Materials | Learned 4 Subcaves zone layouts 1936 | -10/Materials | Learned location of Mines (-9) 1953 | -10/Materials | Loaded intel: 17 trap records 1978 | -10/Materials | Learned location of 2 exits from Mines 2072 | -10/Materials | Entered Mines 2073 | -10/Mines | Learned location of Storage (-8) 2073 | -10/Mines | Assembled infested the area 2074 | -10/Mines | Identified exit to Exiles 2122 | -10/Mines | Met a Derelict bent on vengeance 2122 | -10/Mines | Core integrity fell below 50% 2136 | -10/Mines | Core integrity fell below 20% 2175 | -10/Mines | Lost 6 parts (1p3n2w) 2237 | -10/Mines | Learned Materials emergency access door positions 2243 | -10/Mines | Deemed a non-threat by the Exiles lab entrance 2249 | -10/Mines | Entered Exiles 2296 | -10/Exiles | Met 8R-AWN 2323 | -10/Exiles | Met EX-HEX 2394 | -10/Exiles | Met EX-BIN 2413 | -10/Exiles | Aligned with FarCom system 2415 | -10/Exiles | Given EX-Vault access code 2467 | -10/Exiles | Opened EX-Vault 2475 | -10/Exiles | Found AWS/Gauss 2507 | -10/Exiles | Warned to stay clear of 0b10 Research branches 2550 | -10/Exiles | Met EX-DEC 2687 | -10/Exiles | Visited The Gauntlet 2866 | -10/Exiles | Identified exit to Mines 2866 | -10/Exiles | Discovered exit to Mines (range 14) 2888 | -10/Exiles | Left Exiles lab with AWS/Gauss 2888 | -10/Exiles | Entered Mines 3066 | -9/Mines | Destroyed by G-34 Mercenary with Small Laser Last Messages --------------- that..." 02601_ Connecting with EX-Message Board... J5-HVA: Are you here to join us? Sorry but we don't have any workstations ready for assignment just yet. We're probably going to have to pack up and move anyway, seeing as the Mines are expanding a bit too close for comfort. 02824_ Extracted 4 energy. 02827_ Acquired Lrg. Battery. 02834_ Acquired Humpback. 02866_ EXIT=FOUND: MINES LOCATION=MINES GOAL=ESCAPE 02888_ Receiving FarCom transmissions... 02983_ U-05 Engineer lays Concrete. 02984_ T-07 Excavator is excavating. 02985_ U-05 Engineer lays Concrete. 02996_ U-05 Engineer builds a Wall. 03062_ G-47 Trooper destroyed. Map ----- +----------------------------------------------------+ | ????????????????????????????????? | | ????????????????????????????????? | | ????????????????????????????????? | | ????????????????????????????????? | | ????????????????????????????????? | | ????????????????????????????????? | | ????????????????????????????????? | | ????????????????????????????????? | | ????????????????????????????????? | | ????????????????????????????????? | | ????????????????????????????????? | | ????????????????????????????????? | | ????????????????????????????????? | | ????????????????????????????????? | | ????????????????????????????????? | | ????????????????????? ??????????? | | ????????????????????? ??????????? | | ????????????????????? #?????????? | | ????????????????????? #?????????? | | ???????????????????## #?????????? | | ??????????????###### ##????????? | | ?????????????## ## #????????? | | ?????????????# #????????? | | ??????######## #???####?# | | ??????# #??## ### | | ??????#!@ #???# | | ??????#g###### #???# | | ??????#=?????## ##?## | | ?????? ???????## ### | | ????? "????????# | | ????# ????????## """ | | ????# ????????# ## """ | | ????#?????????# #### """ | | ??????????????## ###??## | | ???????????????######?????##### | | ??????????????????????????????### | | ????????????????????????????????? | | ????????????????????????????????? | | | | | | | | | | | | | | | | | | | | | | | | | +----------------------------------------------------+ Best States ------------- Heat Dissipation 25 Energy Generation 10 Energy Capacity 250 Matter Stores 300 Matter Capacity 300 Sight Range 16 Terrain Scan Density 10 Resistance: KI 35 Resistance: TH 35 Resistance: EX 35 Resistance: EM 35 Resistance: I 35 Resistance: S 35 Resistance: P 35 Core Shielding 20 Evasion (%) 55 Recoil Reduction 2 Offensive Hacking 20 Item Schematics ----------------- None Robot Schematics ------------------ None Fabricated ------------ Nothing Alien Tech Used ----------------- None Achievements -------------- Use The Force Challenges ------------ None Game ------ Seed DeuteriumInsulatedInsulator Manual? 0 Play Time 00:29:24 Cumulative 6.5 hours Start 2024.11.15 @ 12:47:20 End 2024.11.15 @ 13:17:02 Sessions 1 Manual Loads 0 Difficulty Explorer Special Mode None Game No. 12 Rogue 3 Adventurer 4 Explorer 5 Win Type - Total 0 Types 0/0/0/0/0/0/0/0/0 Lore% 13 Gallery% 21 Achievement% 22 Wizard Run 0 Options --------- Layout 1 ASCII 0 Keyboard 0 Movement Arrows Keybinds 0 Fullscreen 1 Font 24/Smallcaps Map View 50x35 Zoom Use 0% Tactical HUD 1 Map Filters NONE Filters NONE Steam 1 RUN: 4edc65f3-2733-4618-a924-c292663a8a89